bitfinex-derivatives/quotes_BTCF0:USTF0_20250218
["timestamp","ask_amount","ask_price","bid_price","bid_amount"]
[1739904685169,0.00015976,93932.0,93926.0,0.3608]
[1739904685867,0.219,93949.0,93930.0,0.2140033]
[1739904686166,0.62270001,93959.0,93942.0,0.3608]
[1739904686366,0.26190001,93959.0,93955.0,0.3608]
[1739904686570,0.3608,93969.0,93955.0,0.30751611]
[1739904688466,0.00015967,93971.0,93963.0,0.3608]
[1739904688864,0.22239967,93976.0,93963.0,0.3608]
[1739904689065,0.3608,93966.0,93955.0,0.30751611]
[1739904689665,0.3608,93966.0,93955.0,0.25423222]
[1739904689966,0.3608,93966.0,93953.0,0.00015967]
[1739904689967,0.3608,93958.0,93953.0,0.00015967]
[1739904690661,0.3608,93958.0,93944.0,0.00159679]
[1739904690863,0.3608,93946.0,93944.0,0.00159679]
[1739904691062,0.6608,93946.0,93920.0,0.3608]
[1739904691264,0.3608,93931.0,93920.0,0.3608]
[1739904691464,0.19632115,93930.0,93920.0,0.40509815]
[1739904691762,0.3608,93931.0,93920.0,0.40509815]
[1739904692672,0.3608,93931.0,93920.0,0.35181426]
[1739904693172,0.00015967,93934.0,93920.0,0.54813541]
[1739904693563,0.00015967,93934.0,93920.0,0.35181426]
[1739904693758,0.00015967,93934.0,93920.0,0.54813541]
[1739904693960,0.00015967,93934.0,93933.0,0.3608]
[1739904694164,0.19632115,93960.0,93933.0,0.3608]
[1739904694165,0.3608,93958.0,93933.0,0.3608]
[1739904694365,0.3608,93958.0,93949.0,0.2129613]
[1739904695065,1.08726001,93999.0,93965.0,0.3608]
[1739904695066,0.00056001,93999.0,93965.0,0.3608]
[1739904695265,0.04406088,94014.0,93998.0,0.3608]
[1739904695459,0.8225,94020.0,93998.0,0.3608]
[1739904695666,0.2128277,94009.0,93998.0,0.30751611]
[1739904695867,0.2128365,94005.0,93998.0,0.30751611]
[1739904696066,0.2128365,94005.0,93980.0,0.3608]
[1739904696067,0.00010427,94008.0,93997.0,0.3608]
[1739904696471,0.212838,94004.0,93997.0,0.3608]
[1739904696670,0.22704,93999.0,93997.0,0.3608]
[1739904697371,0.00056001,94007.0,93997.0,0.3608]
[1739904697671,0.00010427,94008.0,93997.0,0.3608]
[1739904697672,0.22668,93999.0,93997.0,0.3608]
[1739904698660,0.22668,93999.0,93997.0,0.30751611]
[1739904698870,0.00010427,94008.0,93997.0,0.30751611]
[1739904699761,0.2128353,94006.0,93997.0,0.30751611]
[1739904699964,0.00010427,94008.0,93997.0,0.30751611]
[1739904700371,0.2128657,93992.0,93977.0,0.00159627]
[1739904700582,0.15417912,93998.0,93987.0,0.3608]
[1739904700976,0.2128653,93992.0,93987.0,0.3608]
[1739904701177,0.2128725,93989.0,93987.0,0.3608]
[1739904701565,0.82416001,93997.0,93987.0,0.3608]
[1739904701876,0.22288,93996.0,93987.0,0.30751611]
[1739904702078,0.2128845,93984.0,93977.0,0.00159627]
[1739904702375,0.3608,93982.0,93977.0,0.00159627]
[1739904702563,0.3608,93982.0,93951.0,0.3608]
[1739904702564,0.2129057,93974.0,93952.0,0.18740156]
[1739904702763,0.19632115,93962.0,93952.0,0.18740156]
[1739904702963,0.55712115,93962.0,93952.0,0.18740156]
[1739904703371,0.3608,93962.0,93952.0,0.18740156]
[1739904703573,0.5737348,93962.0,93952.0,0.18740156]
[1739904703777,1.5019348,93962.0,93952.0,0.18740156]
[1739904703973,1.289,93962.0,93952.0,0.18740156]
[1739904704279,0.9282,93962.0,93961.0,0.3608]
[1739904704464,1.14996,93962.0,93961.0,0.3608]
[1739904704874,1.14948,93962.0,93961.0,0.30751611]
[1739904705073,0.212927,93965.0,93952.0,0.18740156]
[1739904705275,0.5737366,93961.0,93952.0,0.18740156]
[1739904705472,0.3608,93961.0,93952.0,0.18740156]
[1739904705773,0.2129459,93957.0,93951.0,0.3608]
[1739904705973,0.3608,93961.0,93951.0,0.3608]
[1739904706180,0.22044,93960.0,93951.0,0.3608]
[1739904706380,0.2129544,93953.0,93951.0,0.3608]
[1739904706965,0.219,93960.0,93951.0,0.3608]
[1739904707171,0.21944,93959.0,93951.0,0.3608]
[1739904707366,1.14768,93959.0,93951.0,0.3608]
[1739904707774,0.2129548,93953.0,93951.0,0.30751611]
[1739904707981,0.00056001,93959.0,93951.0,0.30751611]
[1739904708167,0.219,93960.0,93951.0,0.30751611]
[1739904709277,0.219,93961.0,93951.0,0.30751611]
[1739904709682,0.00015958,93966.0,93953.0,0.2129514]
[1739904709877,0.00015958,93966.0,93951.0,0.30751611]
[1739904710985,0.00015958,93966.0,93951.0,0.46718932]
[1739904711179,0.00015958,93966.0,93964.0,0.2129279]
[1739904711877,0.3608,93979.0,93961.0,0.3608]
[1739904712078,0.3608,93989.0,93971.0,0.3608]
[1739904712278,0.21488,93988.0,93980.0,0.2128911]
[1739904712583,0.3608,93989.0,93979.0,0.19632115]
[1739904712979,0.3608,93989.0,93975.0,0.00015958]
[1739904713188,0.21456,93988.0,93975.0,0.00015958]
[1739904713983,0.21456,93988.0,93974.0,0.15978059]
[1739904714186,0.3608,93989.0,93974.0,0.15978059]
[1739904715286,0.3608,93989.0,93984.0,0.212883]
[1739904715479,0.3608,93989.0,93980.0,0.3608]
[1739904715680,0.00010436,93993.0,93980.0,0.3608]
[1739904715877,0.00010436,93993.0,93981.0,0.19044798]
[1739904716778,0.3608,93989.0,93981.0,0.19044798]
[1739904717082,0.2128859,93983.0,93981.0,0.13716409]
[1739904717786,7.084e-05,93985.0,93981.0,0.13716409]
[1739904719081,7.084e-05,93985.0,93972.0,0.25123309]
[1739904719475,7.084e-05,93985.0,93976.0,0.2128993]
[1739904719674,7.084e-05,93985.0,93972.0,0.25123309]
[1739904719882,7.084e-05,93985.0,93984.0,0.15959911]
[1739904720486,7.084e-05,93985.0,93977.0,0.3608]
[1739904720687,7.084e-05,93985.0,93979.0,0.2128941]
[1739904721285,7.084e-05,93985.0,93977.0,0.3608]
[1739904721482,0.3608,93980.0,93972.0,0.25123309]
[1739904721696,0.3608,93980.0,93972.0,0.00015958]
[1739904721897,0.20624,93979.0,93972.0,0.00015958]
[1739904722789,7.084e-05,93985.0,93978.0,0.3608]
[1739904723001,7.084e-05,93985.0,93984.0,0.15959911]
[1739904725799,0.00010436,93993.0,93992.0,0.2128649]
[1739904725998,0.92808,94023.0,93992.0,0.30751611]
[1739904726194,0.92808,94023.0,94008.0,0.3608]
[1739904726498,0.20284,94022.0,94008.0,0.3608]
[1739904726690,0.2576,94031.0,94008.0,0.40611127]
[1739904727086,0.00015958,94028.0,94009.0,0.00015958]
[1739904727300,0.2127936,94024.0,94009.0,0.00015958]
[1739904727689,0.7216,94017.0,94009.0,0.00015958]
[1739904727889,1.05758,94016.0,94009.0,0.00015958]
[1739904728096,0.8557,94016.0,94010.0,0.25107351]
[1739904728600,0.2128207,94012.0,94010.0,0.25107351]
[1739904728786,0.219,94015.0,94002.0,0.31766725]
[1739904728787,0.92796,94011.0,94002.0,0.31766725]
[1739904728992,0.3608,94006.0,94002.0,0.26438336]
[1739904729695,0.3608,94003.0,94002.0,0.26438336]
[1739904730198,0.573631,94007.0,94002.0,0.26438336]
[1739904730508,0.3608,94005.0,93995.0,0.00015958]
[1739904730803,0.3608,93996.0,93995.0,0.00015958]
[1739904731303,0.7919,93996.0,93995.0,0.00015958]
[1739904732193,0.7919,93996.0,93981.0,0.30927163]
[1739904732399,0.219,93995.0,93981.0,0.30927163]
[1739904734294,0.219,93995.0,93979.0,0.00015958]
[1739904734295,0.3608,93988.0,93979.0,0.00015958]
[1739904734494,0.3608,93985.0,93979.0,0.00015958]
[1739904735100,0.3608,93985.0,93971.0,0.35302012]
[1739904735308,0.3608,93985.0,93978.0,0.2128956]
[1739904735510,0.219,93995.0,93984.0,0.3608]
[1739904735796,0.65066001,93996.0,93994.0,0.3608]
[1739904735997,0.6501,93996.0,93994.0,0.3608]
[1739904736501,0.6501,93996.0,93986.0,0.00015958]
[1739904736893,0.4311,93996.0,93986.0,0.00015958]
[1739904737094,0.3608,94000.0,93986.0,0.00015958]
[1739904737393,0.19524,93999.0,93986.0,0.00015958]
[1739904737594,0.2128652,93992.0,93986.0,0.00015958]
[1739904737804,0.4001,93998.0,93986.0,0.00015958]
[1739904737994,0.219,93997.0,93986.0,0.00015958]
[1739904738193,0.19452,93996.0,93984.0,0.30767569]
[1739904738397,0.3608,93997.0,93984.0,0.30767569]
[1739904739706,0.61966001,93998.0,93984.0,0.30767569]
[1739904740003,0.6191,93998.0,93984.0,0.30767569]
[1739904740599,0.3608,93995.0,93984.0,0.30767569]
[1739904741299,0.61966001,93998.0,93984.0,0.2543918]
[1739904741602,0.3608,93994.0,93984.0,0.2543918]
[1739904741905,0.61966001,93998.0,93987.0,0.2128755]
[1739904742105,0.6191,93998.0,93984.0,0.2543918]
[1739904742302,0.6191,93998.0,93990.0,0.2128679]
[1739904743503,0.6191,93998.0,93984.0,0.2543918]
[1739904743504,0.6191,93998.0,93992.0,0.3608]
[1739904743703,0.3608,94028.0,93997.0,0.3608]
[1739904744003,0.3608,94028.0,94012.0,0.3608]
[1739904744004,0.19056,94027.0,94012.0,0.3608]
[1739904744206,0.19056,94027.0,94018.0,0.15952131]
[1739904744409,0.3608,94028.0,94012.0,0.3608]
[1739904744904,0.19028,94027.0,94026.0,0.2127879]
[1739904745099,0.00015958,94029.0,94026.0,0.2127879]
[1739904745399,0.00015958,94029.0,94028.0,0.2127834]
[1739904745805,0.00015958,94029.0,94013.0,0.4315]
[1739904746002,0.00015958,94029.0,94013.0,0.46860412]
[1739904746205,0.00015958,94029.0,94013.0,0.03710412]
[1739904746206,0.3608,94026.0,94013.0,0.03710412]
[1739904746500,0.19574281,94023.0,94012.0,0.3608]
[1739904746697,0.8138,94025.0,94012.0,0.3608]
[1739904746899,0.18908,94024.0,94012.0,0.3608]
[1739904747098,0.18908,94024.0,94014.0,0.2128129]
[1739904747301,0.81436001,94025.0,94015.0,0.2128122]
[1739904747501,0.8138,94025.0,94015.0,0.2128122]
[1739904747704,0.3608,94028.0,94012.0,0.3608]
[1739904747904,0.1882,94027.0,94012.0,0.3608]
[1739904748203,0.1882,94027.0,94012.0,0.39893595]
[1739904748506,0.3608,94026.0,94012.0,0.61175395]
[1739904748706,0.00015958,94029.0,94021.0,0.3608]
[1739904749001,0.18756,94028.0,94021.0,0.3608]
[1739904749212,0.18756,94028.0,94012.0,0.61175425]
[1739904749412,0.36095958,94029.0,94012.0,0.61175425]
[1739904749600,0.36095958,94029.0,94012.0,0.39893595]
[1739904749796,0.19574281,94022.0,94012.0,0.3608]
[1739904750407,0.3608,94020.0,94011.0,0.00015958]
[1739904750709,0.59662,94019.0,94011.0,0.00015958]
[1739904750908,0.4101,94019.0,94011.0,0.00015958]
[1739904751904,0.4309,94018.0,94011.0,0.00015958]
[1739904752398,0.36136001,94020.0,94011.0,0.00015958]
[1739904752399,0.3608,94020.0,94011.0,0.00015958]
[1739904752603,0.18496,94019.0,94011.0,0.00015958]
[1739904753313,0.02131474,94019.0,94002.0,0.38688587]
[1739904753605,0.2128039,94019.0,94002.0,0.38688587]
[1739904753806,0.212811,94016.0,94001.0,0.36239586]
[1739904754002,0.212811,94016.0,94001.0,0.40046008]
[1739904754210,0.3608,94012.0,94001.0,0.40046008]
[1739904755413,0.3608,94012.0,94001.0,0.39886422]
[1739904755799,0.4107,94011.0,94001.0,0.39886422]
[1739904756407,0.4107,94011.0,94001.0,0.34558033]
[1739904756703,0.60644281,94011.0,94001.0,0.34558033]
[1739904756907,0.212834,94006.0,94001.0,0.03806422]
[1739904757109,0.81982492,94011.0,93997.0,0.00015958]
[1739904757310,0.81926491,94011.0,93997.0,0.03840508]
[1739904757512,0.60644281,94011.0,93997.0,0.03840508]
[1739904757912,0.5736513,93998.0,93997.0,0.03840508]
[1739904758615,0.3608,93998.0,93997.0,0.03840508]
[1739904759511,0.3608,93998.0,93982.0,0.39051734]
[1739904759710,0.3608,93998.0,93982.0,0.42925968]
[1739904760110,0.19574281,93992.0,93982.0,0.42925968]
[1739904761215,0.3608,93998.0,93982.0,0.42925968]
[1739904761607,0.5736515,93998.0,93982.0,0.42925968]
[1739904762313,0.3608,93998.0,93982.0,0.42925968]
[1739904762514,0.3608,93998.0,93982.0,0.37597579]
[1739904763509,0.09802195,93997.0,93982.0,0.37597579]
[1739904764309,0.09802195,93997.0,93982.0,0.58886139]
[1739904764514,0.09802195,93997.0,93991.0,0.2128661]
[1739904764714,0.09802195,93997.0,93986.0,0.2128773]
[1739904764917,0.09802195,93997.0,93987.0,0.212876]
[1739904765610,0.09802195,93997.0,93982.0,0.37597579]
[1739904766020,0.09802195,93997.0,93984.0,0.2128828]
[1739904766313,0.3608,94002.0,93982.0,0.37597579]
[1739904766908,0.19574281,94000.0,93982.0,0.37597579]
[1739904767326,0.19574281,94000.0,93983.0,0.2128849]
[1739904768221,0.19574281,94000.0,93982.0,0.37597579]
[1739904768521,0.19574281,94000.0,93982.0,0.3226919]
[1739904768720,0.40858981,94000.0,93982.0,0.3226919]
[1739904769218,0.3608,94002.0,93982.0,0.03874234]
[1739904769219,0.3608,93989.0,93982.0,0.03874234]
[1739904769421,0.3608,93989.0,93978.0,0.00010636]
[1739904769719,0.3608,93989.0,93978.0,0.03820954]
[1739904769921,0.3608,93989.0,93978.0,0.00010636]
[1739904770311,0.3608,93989.0,93978.0,0.03727261]
[1739904770715,0.2128742,93988.0,93978.0,0.03727261]
[1739904770915,0.3608,93989.0,93978.0,0.03727261]
[1739904771514,0.3608,93989.0,93978.0,0.03716625]
[1739904771709,0.3608,93989.0,93971.0,0.34478872]
[1739904771916,0.3608,93989.0,93971.0,0.38362304]
[1739904772115,0.3608,93989.0,93971.0,0.59653534]
[1739904772317,0.3608,93989.0,93972.0,0.2129101]
[1739904772725,0.3608,93989.0,93971.0,0.38362304]
[1739904774118,0.3608,93989.0,93971.0,0.03883432]
[1739904774119,0.49142325,93981.0,93971.0,0.03883432]
[1739904774424,0.2128948,93979.0,93965.0,0.4184]
[1739904774719,0.13062325,93975.0,93965.0,0.36511611]
[1739904775113,0.13062325,93975.0,93965.0,0.40263028]
[1739904775717,0.13062325,93975.0,93965.0,0.03751417]
[1739904775915,0.13062325,93975.0,93964.0,0.2662]
[1739904777017,0.34352875,93975.0,93960.0,0.3608]
[1739904777221,0.3608,93971.0,93960.0,0.3608]
[1739904777522,0.2129103,93972.0,93960.0,0.3608]
[1739904777824,0.2129128,93971.0,93960.0,0.30911226]
[1739904778014,1.0083469,93974.0,93960.0,0.30911226]
[1739904778211,1.0083469,93974.0,93960.0,0.34613707]
[1739904778212,0.2129155,93970.0,93960.0,0.34613707]
[1739904778624,0.79536001,93974.0,93960.0,0.34613707]
[1739904778921,0.7948,93974.0,93960.0,0.34613707]
[1739904780024,0.2129225,93967.0,93960.0,0.34613707]
[1739904780421,0.2129098,93973.0,93960.0,0.34613707]
[1739904780820,0.2129109,93972.0,93960.0,0.29285318]
[1739904781026,0.2129145,93971.0,93960.0,0.29285318]
[1739904781326,0.3608,93973.0,93960.0,0.29285318]
[1739904781526,0.2129147,93970.0,93960.0,0.29285318]
[1739904781924,0.3608,93973.0,93960.0,0.29285318]
[1739904781925,0.2129171,93969.0,93960.0,0.29285318]
[1739904782222,0.2129213,93968.0,93960.0,0.29285318]
[1739904782721,0.2129174,93969.0,93960.0,0.03702481]
[1739904782922,0.2129283,93964.0,93953.0,0.4125]
[1739904783231,0.13062325,93963.0,93953.0,0.4125]
[1739904783925,0.3608,93955.0,93941.0,0.24769668]
[1739904784123,0.2129782,93942.0,93941.0,0.00159668]
[1739904784433,0.2129782,93942.0,93933.0,0.3608]
[1739904784434,0.3608,93947.0,93933.0,0.3608]
[1739904784731,0.13062325,93943.0,93933.0,0.3608]
[1739904784925,0.2598,93942.0,93933.0,0.3608]
[1739904785228,0.16648,93941.0,93933.0,0.3608]
[1739904785527,0.2130133,93927.0,93923.0,0.3608]
[1739904785733,0.3608,93930.0,93923.0,0.3608]
[1739904785930,0.2130347,93918.0,93914.0,0.00159724]
[1739904786226,0.5738394,93915.0,93914.0,0.00159724]
[1739904786527,0.3608,93915.0,93914.0,0.00159724]
[1739904786831,0.213042,93914.0,93900.0,0.04831335]
[1739904787127,0.3608,93901.0,93900.0,0.04831335]
[1739904787629,0.3608,93904.0,93900.0,0.04831335]
[1739904788332,0.2130704,93902.0,93900.0,0.04831335]
[1739904788829,0.3608,93904.0,93900.0,0.04831335]
[1739904789031,0.2130704,93902.0,93900.0,0.04831335]
[1739904789227,0.2130712,93901.0,93900.0,0.04831335]
[1739904789430,0.5738712,93901.0,93900.0,0.04831335]
[1739904789930,0.5738712,93901.0,93878.0,0.2131233]
[1739904790134,0.3608,93889.0,93874.0,1.07954]
[1739904790431,0.164,93888.0,93874.0,1.07954]
[1739904791023,0.164,93888.0,93882.0,0.5739139]
[1739904791230,0.4153,93891.0,93882.0,0.5739139]
[1739904791534,0.4153,93903.0,93890.0,0.3608]
[1739904791725,0.29390325,93900.0,93890.0,0.3608]
[1739904791927,0.13062325,93900.0,93890.0,0.5738943]
[1739904792934,0.3608,93899.0,93890.0,0.52061041]
[1739904793534,0.13062325,93900.0,93890.0,0.30751611]
[1739904793834,0.13062325,93900.0,93894.0,0.2130864]
[1739904794220,0.4153,93903.0,93894.0,0.2130864]
[1739904794435,0.219,93906.0,93904.0,0.2130628]
[1739904794733,0.00015966,93910.0,93908.0,0.213055]
[1739904795034,0.00015966,93910.0,93904.0,0.3608]
[1739904795035,0.0379903,93921.0,93919.0,0.2130288]
[1739904795228,0.0379903,93921.0,93920.0,0.3608]
[1739904795433,0.3608,93940.0,93932.0,0.2129997]
[1739904795624,0.1624,93939.0,93930.0,0.3608]
[1739904795929,0.1624,93939.0,93930.0,0.30751611]
[1739904796136,0.3608,93940.0,93930.0,0.30751611]
[1739904796330,0.00015975,93944.0,93935.0,0.2129918]
[1739904797036,0.00015975,93944.0,93939.0,0.3608]
[1739904797226,0.16140025,93948.0,93947.0,0.2129668]
[1739904797432,0.3608,93965.0,93949.0,0.2129601]
[1739904797629,0.16144,93964.0,93950.0,0.5737593]
[1739904797832,0.3608,93965.0,93953.0,0.2129526]
[1739904799035,0.3608,93965.0,93951.0,0.3907]
[1739904799440,0.3608,93965.0,93951.0,0.603657]
[1739904800344,0.3608,93965.0,93952.0,0.2129551]
[1739904800841,0.3608,93965.0,93951.0,0.3907]
[1739904801538,0.3608,93965.0,93953.0,0.212952]
[1739904801739,0.3608,93965.0,93954.0,0.2129502]
[1739904801936,0.3608,93965.0,93963.0,0.15964621]
[1739904802136,0.00015966,93968.0,93967.0,0.2129215]
[1739904803235,0.00015966,93968.0,93967.0,0.5737215]
[1739904804028,0.3608,93988.0,93967.0,0.3608]
[1739904804239,0.3608,93975.0,93967.0,0.3608]
[1739904804437,0.3608,93975.0,93958.0,0.3608]
[1739904804639,0.3608,93964.0,93948.0,0.3608]
[1739904805043,0.3608,93956.0,93948.0,0.30767577]
[1739904805843,0.3608,93956.0,93949.0,0.2129622]
[1739904806047,0.3608,93956.0,93948.0,0.30767577]
[1739904806240,0.3608,93956.0,93948.0,0.35414343]
[1739904807333,0.3608,93956.0,93948.0,0.30767577]
[1739904808141,0.3608,93956.0,93945.0,0.04762365]
[1739904808445,0.3608,93946.0,93943.0,0.00015966]
[1739904809646,0.5737708,93946.0,93943.0,0.00015966]
[1739904810047,0.3608,93946.0,93943.0,0.00015966]
[1739904810250,0.15572,93945.0,93943.0,0.00015966]
[1739904810451,0.51652,93945.0,93943.0,0.00015966]
[1739904811148,0.83996001,93948.0,93930.0,0.61408261]
[1739904811149,0.00056001,93948.0,93947.0,0.2129668]
[1739904811350,0.219,93952.0,93942.0,0.2129779]
[1739904812253,0.219,93952.0,93938.0,0.36095966]
[1739904812556,0.15528,93951.0,93950.0,0.21296]
[1739904813257,0.15432,93951.0,93950.0,0.21296]
[1739904814249,0.15432,93951.0,93950.0,0.15967611]
[1739904814444,0.3608,93957.0,93942.0,0.2524]
[1739904814746,0.3608,93957.0,93955.0,0.2129467]
[1739904816545,0.3608,93965.0,93955.0,0.2129467]
[1739904817154,0.3608,93965.0,93955.0,0.15966281]
[1739904817455,0.3608,93965.0,93956.0,0.2129464]
[1739904817847,0.3608,93965.0,93946.0,0.3608]
[1739904818157,0.15268,93961.0,93958.0,0.21294]
[1739904818360,0.3608,93965.0,93961.0,0.2129351]
[1739904819456,0.81144,93983.0,93961.0,0.2129351]
[1739904819754,0.19608261,93980.0,93961.0,0.2129351]
[1739904819957,0.19608261,93980.0,93961.0,0.25982229]
[1739904820151,0.3608,93969.0,93961.0,0.04688719]
[1739904820356,0.2129257,93966.0,93946.0,0.3608]
[1739904820564,0.3608,93957.0,93946.0,0.3608]
[1739904820947,0.3608,93960.0,93946.0,0.40901056]
[1739904821955,0.3608,93969.0,93961.0,0.2129351]
[1739904822357,0.3608,93969.0,93955.0,0.5737472]
[1739904822553,0.3608,93969.0,93957.0,0.2129434]
[1739904822755,0.3608,93969.0,93955.0,0.3608]
[1739904822951,0.1516,93961.0,93955.0,0.3608]
[1739904823150,0.3608,93957.0,93933.0,0.3932]
[1739904823354,0.3608,93957.0,93947.0,0.212965]
[1739904823855,0.3608,93957.0,93948.0,0.2129626]
[1739904825258,0.3608,93955.0,93946.0,0.35572667]
[1739904825457,0.3608,93955.0,93950.0,0.2129593]
[1739904826251,0.3608,93955.0,93950.0,0.15967541]
[1739904826767,0.3608,93955.0,93951.0,0.2129571]
[1739904827155,0.3608,93955.0,93952.0,0.2129541]
[1739904827554,0.3608,93955.0,93953.0,0.2129524]
[1739904827853,0.3608,93955.0,93953.0,0.2129515]
[1739904828565,0.09807439,93954.0,93946.0,0.56869377]
[1739904828763,0.09807439,93954.0,93946.0,0.35572667]
[1739904829064,0.09807439,93954.0,93951.0,0.2129577]
[1739904829260,0.09807439,93954.0,93952.0,0.15967151]
[1739904830060,0.09807439,93954.0,93953.0,0.2129533]
[1739904830966,0.09807439,93954.0,93948.0,0.2129639]
[1739904831269,0.09807439,93954.0,93946.0,0.35572667]
[1739904831754,0.09807439,93954.0,93951.0,0.2129577]
[1739904832377,0.09807439,93954.0,93951.0,0.15967381]
[1739904833771,0.09807439,93954.0,93946.0,0.35572667]
[1739904834157,0.6652,93959.0,93946.0,0.35572667]
[1739904834158,0.66576001,93959.0,93948.0,0.2129641]
[1739904834461,0.6652,93959.0,93946.0,0.35572667]
[1739904834656,0.6652,93959.0,93946.0,0.04821056]
[1739904834852,0.3608,93948.0,93934.0,0.00159686]
[1739904835062,0.3608,93939.0,93934.0,0.00159686]
[1739904835262,0.50752,93939.0,93934.0,0.00159686]
[1739904835469,0.50752,93939.0,93927.0,0.35631632]
[1739904835759,0.8214,93938.0,93927.0,0.35631632]
[1739904836761,0.8214,93938.0,93927.0,0.30927263]
[1739904836958,0.3608,93930.0,93916.0,0.2130367]
[1739904837161,0.3608,93930.0,93915.0,0.2431]
[1739904837959,0.3608,93922.0,93915.0,0.2898554]
[1739904838566,0.3608,93922.0,93915.0,0.0467554]
[1739904838759,0.3608,93922.0,93912.0,0.3608]
[1739904838959,0.14548,93921.0,93913.0,0.2130437]
[1739904839156,0.3608,93922.0,93913.0,0.2130437]
[1739904839366,0.3608,93922.0,93913.0,0.04805996]
[1739904839567,0.3608,93924.0,93918.0,0.2130325]
[1739904839758,0.3608,93924.0,93919.0,0.2130301]
[1739904840567,0.3608,93924.0,93914.0,0.2130415]
[1739904840867,0.3608,93924.0,93913.0,0.04763776]
[1739904841063,0.3608,93924.0,93918.0,0.2130325]
[1739904841564,0.3608,93924.0,93918.0,0.15974861]
[1739904841962,0.3608,93924.0,93913.0,0.04809317]
[1739904842175,0.3608,93924.0,93912.0,0.5738453]
[1739904842760,0.3608,93924.0,93908.0,0.00159714]
[1739904842761,0.13067225,93922.0,93908.0,0.00159714]
[1739904842966,0.802,93921.0,93908.0,0.00159714]
[1739904843363,0.802,93921.0,93908.0,0.04996071]
[1739904843563,0.802,93921.0,93908.0,0.00159714]
[1739904844565,0.802,93921.0,93907.0,0.16137055]
[1739904844768,0.802,93921.0,93907.0,0.04658297]
[1739904844970,0.802,93921.0,93905.0,0.2407]
[1739904846663,0.802,93921.0,93905.0,0.4537614]
[1739904846971,0.802,93921.0,93905.0,0.50166351]
[1739904847470,0.00015966,93922.0,93921.0,0.2130258]
[1739904847968,0.00015966,93922.0,93921.0,0.5738258]
[1739904848368,0.3608,93947.0,93945.0,0.2129711]
[1739904848568,0.3608,93947.0,93931.0,0.3608]
[1739904848866,0.1424,93946.0,93932.0,0.2599]
[1739904849066,0.3608,93947.0,93932.0,0.2599]
[1739904849264,0.3608,93947.0,93939.0,0.3608]
[1739904849463,0.14228,93946.0,93944.0,0.2129729]
[1739904849773,0.3608,93947.0,93944.0,0.2129729]
[1739904850466,0.00015966,93949.0,93944.0,0.2129729]
[1739904850467,0.00015966,93949.0,93944.0,0.04657822]
[1739904850667,0.00015966,93949.0,93947.0,0.2129653]
[1739904853068,0.00015966,93949.0,93944.0,0.04740254]
[1739904853264,0.00015966,93949.0,93939.0,0.2129842]
[1739904853664,0.00015966,93949.0,93939.0,0.15970031]
[1739904854162,0.00015966,93949.0,93930.0,0.13083191]
[1739904854467,0.00015966,93949.0,93945.0,0.2129693]
[1739904855065,0.00015966,93949.0,93946.0,0.2129682]
[1739904855464,0.00015966,93949.0,93941.0,0.2129798]
[1739904855665,0.00015966,93949.0,93943.0,0.2129755]
[1739904855867,0.00015966,93949.0,93939.0,0.13067225]
[1739904856065,0.00015966,93949.0,93944.0,0.2129733]
[1739904856567,0.00015966,93949.0,93944.0,0.15968941]
[1739904857572,0.00015966,93949.0,93939.0,0.13067225]
[1739904857775,0.00015966,93949.0,93947.0,0.2129663]
[1739904859870,0.00015966,93949.0,93947.0,0.15968241]
[1739904860479,0.00015966,93949.0,93948.0,0.2129646]
[1739904862771,0.00015966,93949.0,93948.0,0.15968071]
[1739904865687,0.00015966,93949.0,93948.0,0.10639682]
[1739904868775,0.00015966,93949.0,93941.0,0.7801]
[1739904868981,0.00015966,93949.0,93948.0,0.2129646]
[1739904871789,6e-08,93949.0,93948.0,0.52048071]
[1739904872087,0.0028806,93976.0,93975.0,0.2129034]
[1739904873193,0.0028806,93976.0,93975.0,0.25343532]
[1739904874794,0.0028806,93976.0,93975.0,0.20015143]
[1739904876197,0.10056001,94000.0,93999.0,0.212849]
[1739904876501,0.30089255,94001.0,94000.0,0.2128468]
[1739904876799,0.3608,94010.0,93999.0,0.3608]
[1739904877100,0.13408,94009.0,94008.0,0.2128287]
[1739904877299,0.34888384,94012.0,94000.0,0.13067225]
[1739904877495,0.34888384,94012.0,94009.0,0.2128242]
[1739904877796,0.34888384,94012.0,94011.0,0.15953801]
[1739904878298,0.34888384,94012.0,94011.0,0.19975735]
[1739904879899,0.3608,94017.0,94013.0,0.2128169]
[1739904881009,0.39915958,94018.0,94013.0,0.15953301]
[1739904881407,0.3608,94017.0,94013.0,0.15953301]
[1739904882106,0.3608,94017.0,93999.0,0.36095958]
[1739904882405,0.3608,94007.0,93999.0,0.00015958]
[1739904882611,0.2425,94006.0,93999.0,0.00015958]
[1739904882800,0.2425,94006.0,94000.0,0.2128468]
[1739904883503,0.2425,94006.0,93999.0,0.00015958]
[1739904883504,0.2425,94006.0,94001.0,0.2128439]
[1739904883811,0.2425,94006.0,94002.0,0.2128421]
[1739904884012,0.2425,94006.0,93999.0,0.04101934]
[1739904884312,0.3608,94000.0,93999.0,0.25386834]
[1739904884511,0.3608,94008.0,93999.0,0.04101934]
[1739904885011,0.3608,94006.0,94004.0,0.2128375]
[1739904885211,0.43850156,94018.0,94005.0,0.3608]
[1739904885510,0.00015958,94018.0,94008.0,0.13067225]
[1739904885708,0.39185958,94018.0,94012.0,0.2128182]
[1739904885908,0.39185958,94018.0,94008.0,0.13067225]
[1739904886114,0.39185958,94018.0,94012.0,0.2128187]
[1739904886317,0.39185958,94018.0,94013.0,0.2128153]
[1739904887004,0.39185958,94018.0,94013.0,0.15953141]
[1739904888418,0.39185958,94018.0,94017.0,0.2128083]
[1739904889117,0.00015958,94018.0,94017.0,0.2128083]
[1739904890010,0.00015958,94018.0,94017.0,0.15952441]
[1739904892317,0.3608,94058.0,94036.0,0.053191]
[1739904892507,1.0711,94057.0,94046.0,0.2127412]
[1739904893011,1.0711,94057.0,94047.0,0.15945571]
[1739904893212,1.0711,94057.0,94040.0,0.3608]
[1739904893413,1.0711,94057.0,94043.0,0.00015949]
[1739904893613,1.0711,94057.0,94044.0,0.2127456]
[1739904893814,1.0711,94057.0,94043.0,0.00015949]
[1739904894121,1.0711,94057.0,94052.0,0.2127281]
[1739904894418,1.0711,94057.0,94043.0,0.00015949]
[1739904894922,1.0711,94057.0,94043.0,0.21290769]
[1739904895417,1.0711,94057.0,94045.0,0.2127439]
[1739904895925,0.3608,94050.0,94045.0,0.2127439]
[1739904896116,0.3608,94050.0,94045.0,0.15946001]